Cogmind - Beta 11.1 @@@ ROGUE MODE // 2022.10.18 @ 21:56:37 Player: darki Result: Destroyed by X-62 Marksman with Pulse Rifle Performance ------------- Evolutions (3) 1500 Regions Visited (7) 1400 Robots Destroyed (12) 60 Value Destroyed (574) 574 Prototype IDs (24) 480 Alien Tech Used (0) 0 Bonus (800) 800 TOTAL SCORE: 4814 Bonus ------- Entered DSFs 500 Aligned with FarCom 300 Cogmind --------- Core Integrity 0/700 Matter 134/300 Energy 96/100 System Corruption 2% Temperature Cool (9) Movement Rolling (100) Location -7/DSF Parts ------- > --- POWER (1) -------- (None) > --- PROPULSION (3) --- Armored Huge Wheel > --- UTILITY (5) ------ Machine Analyzer Graphene Brace > --- WEAPON (4) ------- (None) > --- INVENTORY (5) ---- Armored Huge Wheel Improved Sensor Array Improved Terrain Scanner Improved Heavy Machine Gun Peak State ------------ > --- POWER ------------ Reinforced Deuterium Engine > --- PROPULSION ------- Improved Aluminum Leg Carbon-fiber Leg Titanium Leg > --- UTILITY ---------- Medium Storage Unit Machine Analyzer Advanced Visual Processing Unit Improved Sensor Array Improved Terrain Scanner > --- WEAPON ----------- XL Autogun Array > --- INVENTORY -------- Light Ion Engine Aluminum Leg System Restoration Module System Restoration Module Heavy Rocket Launcher Heavy Rocket Launcher Heavy Rocket Launcher Heavy Rocket Launcher [Rating: 63] Favorites ----------- Power Ion Engine Engine Ion Engine Propulsion Aluminum Leg Treads Armored Treads Leg Aluminum Leg Wheel Armored Huge Wheel Utility Medium Storage Unit Device Improved Terrain Scanner Storage Medium Storage Unit Processor Machine Analyzer Weapon Minigun Energy Gun Small Laser Ballistic Gun Minigun Launcher Mini Grenade Launcher Build | -11 -10 -10 -10 -9 -8 -7 -7 ------- Run | Scr Mat Min Exi Min Mat Fac DSF Slots Evolved 6 | . . . . . 4 2 . Power . | . . . . . . . . Propulsion 1 | . . . . . 1 . . Utility 3 | . . . . . 1 2 . Weapon 2 | . . . . . 2 . . Parts Attached 36 | . 1 7 4 1 6 2 15 Power 1 | . . . . . . . 1 Engine 1 | . . . . . . . 1 Core . | . . . . . . . . Reactor . | . . . . . . . . Propulsion 10 | . . 1 . 1 3 . 5 Treads 3 | . . . . . . . 3 Leg 6 | . . 1 . 1 3 . 1 Wheel 1 | . . . . . . . 1 Hover . | . . . . . . . . Flight . | . . . . . . . . Utility 10 | . 1 2 2 . 2 2 1 Device 5 | . 1 1 . . 1 1 1 Storage 2 | . . . 2 . . . . Processor 3 | . . 1 . . 1 1 . Hackware . | . . . . . . . . Protection . | . . . . . . . . Artifact . | . . . . . . . . Weapon 15 | . . 4 2 . 1 . 8 Energy Gun . | . . . . . . . . Energy Cannon . | . . . . . . . . Ballistic Gun 9 | . . 2 2 . 1 . 4 Ballistic Cannon . | . . . . . . . . Launcher 6 | . . 2 . . . . 4 Special Weapon . | . . . . . . . . Impact Weapon . | . . . . . . . . Slashing Weapon . | . . . . . . . . Piercing Weapon . | . . . . . . . . Special Melee Weapon . | . . . . . . . . Unidentified Prototypes 1 | . . . . . . . 1 Parts Lost 12 | . . . . . . . 12 Power 1 | . . . . . . . 1 Propulsion 5 | . . . . . . . 5 Utility 1 | . . . . . . . 1 Weapon 5 | . . . . . . . 5 Highest Loss Streak 8 | . . . . . . . 8 To Critical Strikes . | . . . . . . . . Average Slot Usage (%) 78 | . 98 100 97 85 66 76 57 Engine 10 | . 14 14 14 14 9 7 3 Leg 24 | . 28 28 28 28 27 23 10 Device 7 | . 12 10 . . 8 15 9 Storage 10 | . 14 14 14 14 9 7 4 Processor 6 | . . 3 11 . 3 15 14 Energy Gun 1 | . 14 3 . . . . . Ballistic Gun 13 | . 14 17 14 28 9 7 8 Launcher 3 | . . 6 13 . . . 1 Naked Turns . | . . . . . . . . Heaviest Build 47 | 13 14 21 36 21 31 32 47 Greatest Support 60 | 20 20 27 27 27 45 45 60 Greatest Overweight (x) 5 | . . . 1 . . . 5 Average Overweight (x) . | . . . . . . . . Largest Inventory Capacity 15 | . 8 8 15 10 10 10 10 Average Capacity 9 | . 8 8 8 10 10 10 7 Most Carried 10 | . 6 8 8 8 10 9 10 Average Carried 6 | . 6 6 7 7 5 8 6 Final Capacity 10 | 8 8 8 10 10 10 10 5 Final Carried 10 | 6 6 7 7 8 10 8 5 Class Distribution -------------------- 51% | Skirmisher 48% | Mutant Dominant Class ---------------- Mutant | -10/Materials Mutant | -10/Mines Mutant | -10/Exiles Mutant | -9/Mines Skirmisher | -8/Materials Skirmisher | -7/Factory Skirmisher | -7/DSF Resources | -11 -10 -10 -10 -9 -8 -7 -7 ----------- Run | Scr Mat Min Exi Min Mat Fac DSF Matter Collected 834 | 187 . 109 . 130 55 . 353 Remotely . | . . . . . . . . Salvage Created 606 | . . 30 . 135 58 . 383 Parts 27 | . . 1 . 6 3 . 17 Haulers Intercepted 1 | . . . . . . . 1 Recyclers Shooed . | . . . . . . . . Parts Field Recycled . | . . . . . . . . Retrieved Matter . | . . . . . . . . Parts Self-Destructed . | . . . . . . . . Prevented . | . . . . . . . . Kills | -11 -10 -10 -10 -9 -8 -7 -7 ------- Run | Scr Mat Min Exi Min Mat Fac DSF Combat Hostiles Destroyed 11 | . . 1 . 3 1 . 6 Guns 7 | . . 1 . 3 1 . 2 AOE 4 | . . . . . . . 4 Classes Destroyed 7 | . . 1 . 1 1 . 4 Hauler 1 | . . . . . . . 1 Grunt 3 | . . . . 3 . . . Sentry 2 | . . . . . 1 . 1 Demolisher 1 | . . 1 . . . . . Specialist 2 | . . . . . . . 2 Hunter 2 | . . . . . . . 2 Heavy 1 | . . . . . . . 1 Best Kill Streak 4 | . . 1 . 3 1 . 4 Combat Bots Only 4 | . . 1 . 3 1 . 4 Max Kills in Single Turn 2 | . . 1 . 1 1 . 2 Gunslinging . | . . . . . . . . Exploded 2 | . . . . . . . 2 Melee . | . . . . . . . . Uniques/NPCs Destroyed . | . . . . . . . . Combat | -11 -10 -10 -10 -9 -8 -7 -7 -------- Run | Scr Mat Min Exi Min Mat Fac DSF Damage Taken 3659 | . 78 124 . 186 26 . 3245 Core 809 | . 16 20 . 63 . . 710 Absorbed by Shields 34 | . . . . . . . 34 Core Remaining (%) 86 | 100 . . . 60 100 . . Volleys Fired 37 | . . 2 . 10 2 . 23 Largest 4 | . . 2 . 2 1 . 4 Hottest 117 | . . 50 . 50 60 . 117 Shots Fired 59 | . . 4 . 20 2 . 33 Gun 50 | . . 4 . 20 2 . 24 Cannon . | . . . . . . . . Launcher 9 | . . . . . . . 9 Special . | . . . . . . . . Kinetic 50 | . . 4 . 20 2 . 24 Thermal . | . . . . . . . . Explosive 9 | . . . . . . . 9 Electromagnetic . | . . . . . . . . Robot Hit Streak 12 | . . 3 . 3 4 . 12 Robot Miss Streak 5 | . . . . 2 1 . 5 Penetration Max . | . . . . . . . . Secondary Targets . | . . . . . . . . Shots Hit Robots 40 | . . 3 . 12 1 . 24 Core Hits 25 | . . 2 . 5 1 . 17 Critical Kills . | . . . . . . . . Critical Parts Destroyed . | . . . . . . . . Critical Strikes . | . . . . . . . . Melee Attacks . | . . . . . . . . Impact . | . . . . . . . . Slashing . | . . . . . . . . Piercing . | . . . . . . . . Sneak Attacks . | . . . . . . . . Combat Hostiles . | . . . . . . . . Follow-up Attacks . | . . . . . . . . Damage Inflicted 2142 | . . 51 . 246 42 . 1803 Guns 1278 | . . 51 . 246 42 . 939 Cannons . | . . . . . . . . Explosions 864 | . . . . . . . 864 Melee . | . . . . . . . . Ramming . | . . . . . . . . Kinetic 1278 | . . 51 . 246 42 . 939 Thermal . | . . . . . . . . Explosive 864 | . . . . . . . 864 Electromagnetic . | . . . . . . . . Impact . | . . . . . . . . Slashing . | . . . . . . . . Piercing . | . . . . . . . . Highest Corruption 2 | . . . . . . . 2 Average Corruption 2 | . . . . . . . 2 Corruption Purged . | . . . . . . . . Corruption Blocked . | . . . . . . . . Overload Shots . | . . . . . . . . Overflow Damage 7 | . . . . . . . 7 Projectiles . | . . . . . . . . Explosions 7 | . . . . . . . 7 Melee . | . . . . . . . . Knockbacks . | . . . . . . . . Impact . | . . . . . . . . Kinetic . | . . . . . . . . Secondary . | . . . . . . . . Self-Inflicted Damage 184 | . . . . . . . 184 Shots 3 | . . . . . . . 3 Rammed 1 | . . . . . . . 1 Targets Rammed 1 | . . . . . . . 1 Kicked . | . . . . . . . . Crushed . | . . . . . . . . Highest Temperature 89 | . 15 20 . 89 34 . 78 Average Temperature 41 | . 15 12 . 53 23 . 34 Received Heat Transfer 933 | . 60 . . 105 9 . 759 Siege Activations . | . . . . . . . . Robots Corrupted . | . . . . . . . . Combat Hostiles . | . . . . . . . . Parts Fried . | . . . . . . . . Impact Corruptions . | . . . . . . . . Robots Melted . | . . . . . . . . Combat Hostiles . | . . . . . . . . Parts Melted . | . . . . . . . . Heat Transferred . | . . . . . . . . Parts Sabotaged . | . . . . . . . . Parts Stolen . | . . . . . . . . Parts Stripped . | . . . . . . . . Power Chain Reactions . | . . . . . . . . Missiles Intercepted . | . . . . . . . . Alert | -11 -10 -10 -10 -9 -8 -7 -7 ------- Run | Scr Mat Min Exi Min Mat Fac DSF Peak Influence 159 | . 7 30 . 70 89 14 159 Initial 27 | . . 2 . . 27 14 13 Average 39 | . 3 10 . 65 28 14 86 Maximum Alert Level . | . . . . . . . . Low Security (%) 100 | . 100 100 . 100 100 100 100 Level 1 . | . . . . . . . . Level 2 . | . . . . . . . . Level 3 . | . . . . . . . . Level 4 . | . . . . . . . . Level 5 . | . . . . . . . . High Security . | . . . . . . . . Max Security . | . . . . . . . . Squads Dispatched 4 | . 1 1 . . . . 2 Investigation 2 | . 1 1 . . . . . Extermination . | . . . . . . . . Reinforcement 2 | . . . . . . . 2 Assault . | . . . . . . . . Garrison . | . . . . . . . . Intercept . | . . . . . . . . Searches Triggered . | . . . . . . . . Construction Impeded . | . . . . . . . . Haulers Reinforced . | . . . . . . . . Active Scanning Responses . | . . . . . . . . Cargo Convoy Interrupts . | . . . . . . . . Stealth | -11 -10 -10 -10 -9 -8 -7 -7 --------- Run | Scr Mat Min Exi Min Mat Fac DSF Distress Signals 1 | . 1 . . . . . . Communications Jammed . | . . . . . . . . Distress Signals . | . . . . . . . . Times Spotted 32 | . 5 2 . 3 6 . 16 Peak Tracking Total 9 | . 5 2 . 3 2 . 9 Tactical Retreats . | . . . . . . . . Traps | -11 -10 -10 -10 -9 -8 -7 -7 ------- Run | Scr Mat Min Exi Min Mat Fac DSF Traps Triggered 3 | . 1 . . . . . 2 Indirectly . | . . . . . . . . Trap Hack Attempts . | . . . . . . . . Triggered . | . . . . . . . . Disarmed . | . . . . . . . . Reprogrammed . | . . . . . . . . Reused . | . . . . . . . . Traps Extracted . | . . . . . . . . Installed . | . . . . . . . . Triggered . | . . . . . . . . Exploded 1 | . . . . . 1 . . Machines | -11 -10 -10 -10 -9 -8 -7 -7 ---------- Run | Scr Mat Min Exi Min Mat Fac DSF Machines Disabled 2 | . . . . . . . 2 Max in Single Turn 1 | . . . . . . . 1 Machines Sabotaged . | . . . . . . . . Garrisons Compromised . | . . . . . . . . Overloaded Fab Kills . | . . . . . . . . Hacking | -11 -10 -10 -10 -9 -8 -7 -7 --------- Run | Scr Mat Min Exi Min Mat Fac DSF Machines Accessed 6 | . 1 1 1 . 2 1 . Terminals 4 | . 1 . . . 2 1 . Fabricators . | . . . . . . . . Repair Stations . | . . . . . . . . Recycling Units . | . . . . . . . . Scanalyzers . | . . . . . . . . Garrison Access . | . . . . . . . . Total Hacks 11 | . 2 1 1 . 4 3 . Successful 5 | . 1 1 1 . 1 1 . Failed 6 | . 1 . . . 3 2 . Catastrophic 3 | . . . . . 3 . . Database Lockouts . | . . . . . . . . Manual 5 | . . . 1 . 4 . . Terminals 9 | . 2 . . . 4 3 . Fabricators . | . . . . . . . . Repair Stations . | . . . . . . . . Recycling Units . | . . . . . . . . Scanalyzers . | . . . . . . . . Garrison Access . | . . . . . . . . Terminal Hacks 5 | . 1 1 1 . 1 1 . Open Door 1 | . . 1 . . . . . Open DSF 1 | . . . . . . 1 . Branch Access Points 2 | . 1 . . . 1 . . EX-Prototype ID Bank 1 | . . . 1 . . . . Fabricator Hacks . | . . . . . . . . Repair Station Hacks . | . . . . . . . . Recycling Unit Hacks . | . . . . . . . . Scanalyzer . | . . . . . . . . Garrison Access Hacks . | . . . . . . . . Unauthorized Hacks . | . . . . . . . . Terminals . | . . . . . . . . Fabricators . | . . . . . . . . Repair Stations . | . . . . . . . . Recycling Units . | . . . . . . . . Scanalyzers . | . . . . . . . . Garrison Access . | . . . . . . . . Data Cores Recovered . | . . . . . . . . Used . | . . . . . . . . Hacking Detections 2 | . . . . . 2 . . Full Trace Events . | . . . . . . . . Feedback Events . | . . . . . . . . Feedback Blocked . | . . . . . . . . Robot Schematics Acquired . | . . . . . . . . Robots Built . | . . . . . . . . Authchips . | . . . . . . . . Time . | . . . . . . . . Total Robot Build Rating . | . . . . . . . . Part Schematics Acquired . | . . . . . . . . Parts Built . | . . . . . . . . Authchips . | . . . . . . . . Time . | . . . . . . . . Total Part Build Rating . | . . . . . . . . Parts Repaired . | . . . . . . . . Time . | . . . . . . . . Parts Recycled . | . . . . . . . . Recycled Matter . | . . . . . . . . Retrieved Matter . | . . . . . . . . Retrieved Components . | . . . . . . . . Parts Scanalyzed . | . . . . . . . . Part Schematics Acquired . | . . . . . . . . Parts Damaged . | . . . . . . . . Bothacking | -11 -10 -10 -10 -9 -8 -7 -7 ------------ Run | Scr Mat Min Exi Min Mat Fac DSF Used RIF Installer . | . . . . . . . . Robots Hacked . | . . . . . . . . Non-combat . | . . . . . . . . Combat . | . . . . . . . . Robot Hacks Applied . | . . . . . . . . Relay Couplers Released . | . . . . . . . . Fabnet Peak Effective % . | . . . . . . . . Robots Rewired . | . . . . . . . . Allies Hacked . | . . . . . . . . Hacks Repelled . | . . . . . . . . Allies | -11 -10 -10 -10 -9 -8 -7 -7 -------- Run | Scr Mat Min Exi Min Mat Fac DSF Total Allies 3 | . . 3 . . . . . Largest Group 3 | . . 3 . . . . . Highest-Rated Group 40 | . . 40 . . . . . Highest-Rated Ally 16 | . . 16 . . . . . Total Orders . | . . . . . . . . Ally Attacks 3 | . . 3 . . . . . Total Damage 42 | . . 42 . . . . . Kills . | . . . . . . . . Allies Corrupted . | . . . . . . . . Allies Melted . | . . . . . . . . Intel | -11 -10 -10 -10 -9 -8 -7 -7 ------- Run | Scr Mat Min Exi Min Mat Fac DSF Robot Analysis Total . | . . . . . . . . Derelict Logs Recovered 2 | . . . . 2 . . . Drone Launches . | . . . . . . . . Drone Recoveries . | . . . . . . . . Exploration | -11 -10 -10 -10 -9 -8 -7 -7 ------------- Run | Scr Mat Min Exi Min Mat Fac DSF Turns Passed 1821 | . 92 221 318 171 703 32 284 Spaces Moved 1070 | 1 76 136 246 112 344 25 130 Core 19 | . . . . . . . 19 Treads 10 | . . . . . . . 10 Legs 1024 | 1 76 136 246 112 344 25 84 Wheels 17 | . . . . . . . 17 Hover . | . . . . . . . . Flight . | . . . . . . . . Fastest Speed 50 | 120 120 120 125 125 123 123 50 Average Speed 123 | 120 120 123 125 125 123 123 124 Slowest Speed 300 | 120 120 125 195 125 123 123 300 Overloaded Moves . | . . . . . . . . Propulsion Burnouts . | . . . . . . . . Robots Hopped . | . . . . . . . . Cave-ins Triggered . | . . . . . . . . Exploration Rate (%) 33 | 2 23 32 61 31 28 1 88 Regions Visited 7 Branch Regions 3 Pre-discovered Areas 1 | . . . . 1 . . . Known Exits Taken 2 | . 1 . . . . 1 . Unknown Exits Taken 5 | 1 . 1 1 1 1 . . Scrap Searched 1 | . . . . 1 . . . Spaces Dug 1 | . . . . . 1 . . Terrain Destroyed 67 | . . . . . 2 . 65 Melee . | . . . . . . . . Projectile 2 | . . . . . 2 . . AOE 65 | . . . . . . . 65 Terrain Rammed . | . . . . . . . . Walls Destroyed . | . . . . . . . . Machines Disabled . | . . . . . . . . Actions | -11 -10 -10 -10 -9 -8 -7 -7 --------- Run | Scr Mat Min Exi Min Mat Fac DSF Total 1533 | . 76 187 259 126 625 26 234 Wait 339 | . . 33 . 4 259 . 43 Move 1063 | . 75 135 245 111 343 24 130 Hop . | . . . . . . . . Pick Up 13 | . . 1 2 . 8 . 2 Fast Attach 20 | . 1 6 2 . 2 . 9 Attach 12 | . . . 2 . 2 2 6 Detach 7 | . . 2 . . 2 . 3 Swap 4 | . . 1 . 1 2 . . Drop 28 | . . 7 8 . 5 . 8 Fire 37 | . . 2 . 10 2 . 23 Melee . | . . . . . . . . Ram 1 | . . . . . . . 1 Kick . | . . . . . . . . Crush . | . . . . . . . . Escape Stasis 9 | . . . . . . . 9 Rewire . | . . . . . . . . Trap . | . . . . . . . . Miscellaneous . | . . . . . . . . Route ------- -11/Scrapyard -10/Materials -10/Mines -10/Exiles -9/Mines -8/Materials -7/Factory (discovered 2 exits: Sto / DSF) -7/DSF (discovered 1 exit: [*Fac]) History --------- Turn | Location | Event 1 | -11/Scrapyard | Discovered new exit (range 0) 1 | -11/Scrapyard | Entered Materials 46 | -10/Materials | Identified exit to Mines 93 | -10/Materials | Entered Mines 96 | -10/Mines | Assisted by bots powering up and referring to "LRC-V3" 136 | -10/Mines | Met a Derelict shopkeep closing up shop 189 | -10/Mines | Assembled infested the area 263 | -10/Mines | Met 8R-AWN 308 | -10/Mines | Build established: Mutant 308 | -10/Mines | Discovered new exit (range 5) 314 | -10/Mines | Entered Exiles 353 | -10/Exiles | Welcomed by 8R-AWN 370 | -10/Exiles | Met EX-HEX 409 | -10/Exiles | Met EX-BIN 424 | -10/Exiles | Aligned with FarCom system 425 | -10/Exiles | Given EX-Vault access code 455 | -10/Exiles | Opened EX-Vault 471 | -10/Exiles | Found XL Autogun Array 498 | -10/Exiles | Warned to stay clear of 0b10 Research branches 532 | -10/Exiles | Met EX-DEC 614 | -10/Exiles | Discovered new exit (range 14) 632 | -10/Exiles | Left Exiles lab with XL Autogun Array 632 | -10/Exiles | Entered Mines 776 | -9/Mines | Learned location of Storage (-7) 791 | -9/Mines | Discovered new exit (range 7) 803 | -9/Mines | Entered Materials 803 | -8/Materials | Evolved 4 slots: Propulsion x1, Utility x1, Weapon x2 1106 | -8/Materials | Build established: Skirmisher 1394 | -8/Materials | Discovered new exit (range 16) 1506 | -8/Materials | Entered Factory 1506 | -7/Factory | Evolved 2 slots: Utility x2 1507 | -7/Factory | Identified exit to Storage 1538 | -7/Factory | Identified exit to DSF 1538 | -7/Factory | Entered DSF 1562 | -7/DSF | Additional patrols routed to DSF 1607 | -7/DSF | Discovered new exit (range 20) 1707 | -7/DSF | Core integrity fell below 50% 1734 | -7/DSF | Lost 8 parts (1p4n3w) 1769 | -7/DSF | Core integrity fell below 20% 1822 | -7/DSF | Destroyed by X-62 Marksman with Pulse Rifle Last Messages --------------- 01797_ Penetrated by Slug. 01800_ Matter Repository disabled. 01800_ C-30 ARC bursts open, deploying its payload. 01800_ B-48 Gladiator unfolds itself. 01800_ G-47 Trooper unfolds itself. 01801_ Acquired 7 matter. 01803_ Penetrated by Slug. 01803_ Imp. Heavy Machine Gun destroyed. 01804_ Acquired 8 matter. 01806_ Slug penetrates Matter Repository. 01806_ Acquired 7 matter. 01807_ Acquired 3 matter. 01808_ Acquired 8 matter. 01809_ Penetrated by Slug. 01813_ Adv. Visual Processing Unit destroyed. 01813_ System corrupted by crushing effect (+2). 01813_ Knocked back. 01816_ Acquired Arm. Huge Wheel. 01821_ Acquired 88 matter. 01822_ Penetrated by Slug. Map ----- +----------------------------------------------------+ | ???????????????# # ** #????#?#!! #?????? | | ???????????????# ## # #??????### ###????? | | ???????????????# # # #??????# ##????? | | ???????????????# # #?#??#?# #?????# | | ???????????????# # ######?# #?????? | | ??????############ ## = ##### !###????? | | ??????# ## #!!! #* # [[[ ##!!]]#????? | | ??????# ## #!! # * "#!%]]#????# | | ??????#]] ==[[!]* !!!!!#????? | | ??????#]] ] [ = !!!#????? | | ??????#]] [ % !!#????? | | ??????#[[ ##!!!#!!!## ## ]]]## #????? | | ??????#[[ ##!!!#!!!### # ]]]## #????? | | ??????### g##########?# ### ###### ###????? | | ???????# ! =#??????#!! !!## ###??? ??????? | | ???????# !==#??????#!! !!##[###??? #?????? | | ???????# ==#??????#!! !!## ##? #?????? | | ???????## ###??????### ##### "#??# ##?????? | | ???????#= ==#???????? !!#?###%##?? &??????? | | ???????#= ==#??????? !!#????^#??? &??????? | | ???????##^ ########## !!?????##??? #??#???? | | ??????### ###==#===### ##??? #????? #??????? | | ???####"" ##==#===### ### #&&## "??????? | | ???#""""" xg xg % "??????? | | ???#"##%% g gg %%%<"??????? | | ??????#""%""##==# b=# @!!!!#&&&#?????%"???????? | | ??????#""%""######### !!!!!#?????????%????????? | | ??????####"##???????#########??????????????????? | | ?????????#"#???????????????????????????????????? | | ?????????""#???????????????????????????????????? | | ????????####???????????????????????????????????? | | ???????????????????????????????????????????????? | | ???????????????????????????????????????????????? | | ???????????????????????????????????????????????? | | ???????????????????????????????????????????????? | | | | | | | | | | | | | | | | | | | | | | | | | | | | | | | +----------------------------------------------------+ Best States ------------- Heat Dissipation 34 Energy Generation 16 Energy Capacity 290 Matter Stores 300 Matter Capacity 300 Sight Range 20 Robot Scan Range 15 Terrain Scan Range 16 Terrain Scan Density 10 Evasion (%) 55 Launcher Accuracy 20 Recoil Reduction 3 Item Schematics ----------------- None Robot Schematics ------------------ None Fabricated ------------ Nothing Alien Tech Used ----------------- None Achievements -------------- None Challenges ------------ None Game ------ Seed LightningSniperNullifier Manual? 0 Play Time 00:25:48 Cumulative 104.0 hours Start 2022.10.18 @ 20:05:09 End 2022.10.18 @ 21:56:37 Sessions 1 Manual Loads 0 Difficulty Rogue Special Mode None Game No. 113 Rogue 113 Adventurer 0 Explorer 0 Win Type - Total 0 Types 0/0/0/0/0/0/0/0/0 Lore% 49 Gallery% 63 Achievement% 48 Wizard Run 0 Options --------- ASCII 0 Keyboard 0 Movement Mouse Keybinds 0 Fullscreen 1 Font 18/SmallcapsGlow Map View 76x50 Tactical HUD 1 Map Filters NONE Filters NONE Steam 1 RUN: 5ab12fb5-d8bc-4fbf-a76f-a0153b62558f